fUST/lending_fUST_20250506
["ID","MTS","AMOUNT","RATE_DAILY","PERIOD"]
[359988751,1746466242067,-400.0,0.00032876,8]
[359988752,1746466242077,-400.0,0.00032876,8]
[359988753,1746466242087,-400.0,0.00032876,8]
[359988754,1746466242097,-508.21,0.00032876,8]
[359988755,1746466242107,-400.0,0.00032876,8]
[359988756,1746466242118,-402.11863792,0.00032876,8]
[359988757,1746466242128,-400.0,0.00032876,8]
[359988758,1746466242138,-205.54247979,0.00032876,8]
[359988759,1746466242147,-502.77,0.00032876,8]
[359988760,1746466242157,-400.0,0.00032876,8]
[359988761,1746466242167,-151.0,0.00032876,7]
[359988762,1746466242177,-151.0,0.00032876,7]
[359988763,1746466242187,-151.0,0.00032876,7]
[359988764,1746466242196,-2573.19,0.00032876,8]
[359988765,1746466242206,-404.00223548,0.00032876,8]
[359988766,1746466242215,-400.0,0.00032876,8]
[359988767,1746466242225,-150.83162821,0.00032876,8]
[359988768,1746466242234,-400.0,0.00032876,8]
[359988769,1746466242244,-400.0,0.00032876,8]
[359988770,1746466242255,-412.76,0.00032876,8]
[359988771,1746466242265,-400.0,0.00032876,8]
[359988772,1746466242278,-151.0,0.00032876,7]
[359988773,1746466242289,-151.0,0.00032876,7]
[359988774,1746466242299,-400.0,0.00032876,8]
[359988775,1746466242308,-151.0,0.00032876,7]
[359988776,1746466242319,-161.467075,0.00032876,7]
[359988777,1746466242328,-400.0,0.00032876,8]
[359988778,1746466242338,-151.0,0.00032876,7]
[359988779,1746466242347,-1858.43,0.00032876,8]
[359988780,1746466242357,-400.0,0.00032876,8]
[359988781,1746466242367,-400.0,0.00032876,8]
[359988782,1746466242376,-400.0,0.00032876,8]
[359988783,1746466242385,-536.35369783,0.00032876,8]
[359988784,1746466242395,-500.0,0.00032876,8]
[359988785,1746466242404,-400.0,0.00032876,8]
[359988786,1746466242413,-663.7,0.00032876,8]
[359988787,1746466242423,-400.0,0.00032876,8]
[359988788,1746466242433,-752.3,0.00032876,8]
[359988789,1746466242443,-278.11550455,0.00032876,8]
[359988790,1746466242452,-400.0,0.00032876,8]
[359988791,1746466242462,-400.0,0.00032876,8]
[359988792,1746466242471,-400.0,0.00032876,8]
[359988793,1746466242480,-406.36522184,0.00032876,8]
[359988794,1746466242489,-400.0,0.00032876,8]
[359988795,1746466242498,-400.0,0.00032876,8]
[359988796,1746466242509,-402.12143597,0.00032876,8]
[359988797,1746466242518,-400.0,0.00032876,8]
[359988798,1746466242528,-3742.18,0.00032876,8]
[359988799,1746466242538,-400.0,0.00032876,8]
[359988800,1746466242556,-742.46,0.00032876,8]
[359988801,1746466242574,-791.14,0.00032876,8]
[359988802,1746466242591,-170.10592825,0.00032876,8]
[359988803,1746466242611,-400.0,0.00032876,8]
[359988804,1746466242631,-400.0,0.00032876,8]
[359988805,1746466242648,-500.0,0.00032876,8]
[359988806,1746466242663,-357.85912436,0.00032876,8]
[359988807,1746466242681,-400.0,0.00032876,8]
[359988808,1746466242696,-151.0,0.00032876,7]
[359988809,1746466242712,-400.0,0.00032876,8]
[359988810,1746466242730,-152.350443,0.00032876,7]
[359988811,1746466242750,-400.0,0.00032876,8]
[359988812,1746466242763,-400.0,0.00032876,8]
[359988814,1746466242779,-400.0,0.00032876,8]
[359988817,1746466242796,-400.0,0.00032876,8]
[359988818,1746466242812,-400.0,0.00032876,8]
[359988819,1746466242827,-400.0,0.00032876,8]
[359988820,1746466242842,-400.0,0.00032876,8]
[359988821,1746466242857,-400.0,0.00032876,8]
[359988823,1746466242871,-400.0,0.00032876,8]
[359988824,1746466242886,-400.0,0.00032876,8]
[359988826,1746466242902,-400.0,0.00032876,8]
[359988827,1746466242917,-217.79190577,0.00032876,8]
[359988828,1746466242931,-400.0,0.00032876,8]
[359988829,1746466242946,-424.25,0.00032876,8]
[359988830,1746466242962,-400.0,0.00032876,8]
[359988831,1746466242977,-232.029026,0.00032876,7]
[359988832,1746466242992,-400.0,0.00032876,8]
[359988833,1746466243007,-400.0,0.00032876,8]
[359988834,1746466243022,-400.0,0.00032876,8]
[359988835,1746466243037,-400.0,0.00032876,8]
[359988837,1746466243051,-400.0,0.00032876,8]
[359988839,1746466243065,-400.0,0.00032876,8]
[359988841,1746466243081,-204.84796557,0.00032876,8]
[359988843,1746466243095,-400.0,0.00032876,8]
[359988844,1746466243109,-400.0,0.00032876,8]
[359988845,1746466243124,-412.18223718,0.00032876,8]
[359988846,1746466243140,-400.0,0.00032876,8]
[359988847,1746466243155,-400.0,0.00032876,8]
[359988849,1746466243170,-400.0,0.00032876,8]
[359988850,1746466243184,-400.0,0.00032876,8]
[359988851,1746466243199,-400.0,0.00032876,8]
[359988852,1746466243214,-400.0,0.00032876,8]
[359988853,1746466243229,-971.48,0.00032876,8]
[359988854,1746466243243,-206.96531414,0.00032876,8]
[359988855,1746466243260,-400.0,0.00032876,8]
[359988856,1746466243278,-169.539145,0.00032876,7]
[359988857,1746466243293,-169.539145,0.00032876,7]
[359988858,1746466243307,-169.539145,0.00032876,7]
[359988859,1746466243321,-400.0,0.00032876,8]
[359988860,1746466243335,-169.539145,0.00032876,7]
[359988861,1746466243349,-169.539145,0.00032876,7]
[359988862,1746466243364,-169.539145,0.00032876,7]
[359988864,1746466243377,-410.74,0.00032876,8]
[359988867,1746466243392,-400.0,0.00032876,8]
[359988868,1746466243404,-502.97,0.00032876,8]
[359988869,1746466243413,-1385.97,0.00032876,8]
[359988870,1746466243423,-421.31516652,0.00032876,8]
[359988871,1746466243432,-400.0,0.00032876,8]
[359988872,1746466243441,-160.13135596,0.00032876,8]
[359988873,1746466243450,-828.56,0.00032876,8]
[359988874,1746466243460,-400.0,0.00032876,8]
[359988875,1746466243470,-1013.68,0.00032876,8]
[359988876,1746466243480,-904.75,0.00032876,8]
[359988877,1746466243490,-400.0,0.00032876,8]
[359988878,1746466243681,-400.0,0.00032876,8]
[359988879,1746466243700,-151.0,0.00032876,7]
[359988880,1746466243710,-159.829157,0.00032876,7]
[359988881,1746466243720,-1542.95,0.00032876,8]
[359988882,1746466243730,-544.83,0.00032876,8]
[359988883,1746466243739,-400.0,0.00032876,8]
[359988884,1746466243749,-151.0,0.00032876,7]
[359988885,1746466243759,-151.0,0.00032876,7]
[359988886,1746466243770,-151.0,0.00032876,7]
[359988887,1746466243780,-400.0,0.00032876,8]
[359988888,1746466243789,-400.0,0.00032876,8]
[359988889,1746466243799,-400.0,0.00032876,8]
[359988890,1746466243807,-401.08209744,0.00032876,8]
[359988891,1746466243817,-400.0,0.00032876,8]
[359988892,1746466243827,-400.0,0.00032876,8]
[359988893,1746466243836,-906.63,0.00032876,8]
[359988894,1746466243845,-400.0,0.00032876,8]
[359988895,1746466243854,-400.0,0.00032876,8]
[359988896,1746466243863,-899.92,0.00032876,8]
[359988897,1746466243873,-400.0,0.00032876,8]
[359988898,1746466243883,-400.0,0.00032876,8]
[359988899,1746466243892,-200.0,0.00032876,8]
[359988900,1746466243902,-400.0,0.00032876,8]
[359988901,1746466243911,-400.77978627,0.00032876,8]
[359988902,1746466243921,-400.0,0.00032876,8]
[359988903,1746466243931,-1685.97,0.00032876,8]
[359988904,1746466243940,-400.0,0.00032876,8]
[359988905,1746466243950,-400.0,0.00032876,8]
[359988906,1746466243959,-400.0,0.00032876,8]
[359988907,1746466243968,-400.0,0.00032876,8]
[359988908,1746466243978,-400.0,0.00032876,8]
[359988909,1746466243988,-151.0,0.00032876,7]
[359988910,1746466243998,-450.26121172,0.00032876,8]
[359988911,1746466244008,-400.0,0.00032876,8]
[359988912,1746466244018,-400.0,0.00032876,8]
[359988913,1746466244028,-411.02,0.00032876,8]
[359988914,1746466244038,-400.0,0.00032876,8]
[359988915,1746466244047,-400.0,0.00032876,8]
[359988916,1746466244057,-2098.43,0.00032876,8]
[359988917,1746466244067,-544.02,0.00032876,8]
[359988918,1746466244076,-400.0,0.00032876,8]
[359988919,1746466244085,-400.0,0.00032876,8]
[359988920,1746466244095,-400.0,0.00032876,8]
[359988921,1746466244104,-400.0,0.00032876,8]
[359988922,1746466244114,-400.0,0.00032876,8]
[359988923,1746466244123,-942.66,0.00032876,8]
[359988924,1746466244132,-400.0,0.00032876,8]
[359988925,1746466244142,-400.0,0.00032876,8]
[359988926,1746466244152,-400.0,0.00032876,8]
[359988927,1746466244164,-400.0,0.00032876,8]
[359988928,1746466244173,-400.0,0.00032876,8]
[359988929,1746466244183,-400.0,0.00032876,8]
[359988930,1746466244194,-400.0,0.00032876,8]
[359988931,1746466244204,-400.0,0.00032876,8]
[359988932,1746466244214,-400.0,0.00032876,8]
[359988933,1746466244224,-1085.21,0.00032876,8]
[359988934,1746466244233,-400.0,0.00032876,8]
[359988935,1746466244242,-400.0,0.00032876,8]
[359988936,1746466244251,-400.0,0.00032876,8]
[359988937,1746466244261,-400.0,0.00032876,8]
[359988938,1746466244275,-400.0,0.00032876,8]
[359988939,1746466244284,-400.0,0.00032876,8]
[359988940,1746466244293,-494.46398884,0.00032876,8]
[359988941,1746466244302,-400.0,0.00032876,8]
[359988942,1746466244311,-400.0,0.00032876,8]
[359988943,1746466244320,-400.0,0.00032876,8]
[359988944,1746466244330,-400.0,0.00032876,8]
[359988945,1746466244339,-413.54,0.00032876,8]
[359988946,1746466244350,-400.0,0.00032876,8]
[359988947,1746466244359,-400.0,0.00032876,2]
[359988948,1746466244368,-400.0,0.00032876,8]
[359988949,1746466244378,-151.0,0.00032876,7]
[359988950,1746466244387,-151.0,0.00032876,7]
[359988951,1746466244397,-400.0,0.00032876,8]
[359988952,1746466244406,-151.0,0.00032876,7]
[359988953,1746466244415,-400.0,0.00032876,8]
[359988954,1746466244425,-441.99,0.00032876,8]
[359988955,1746466244434,-151.0,0.00032876,7]
[359988956,1746466244444,-400.0,0.00032876,8]
[359988957,1746466244455,-151.0,0.00032876,7]
[359988958,1746466244465,-400.0,0.00032876,8]
[359988959,1746466244474,-265.84133,0.00032876,7]
[359988960,1746466244483,-3512.58,0.00032876,2]
[359988961,1746466244493,-400.0,0.00032876,8]
[359988962,1746466244502,-511.96839439,0.00032876,8]
[359988963,1746466244511,-400.0,0.00032876,8]
[359988964,1746466244521,-400.0,0.00032876,8]
[359988965,1746466244530,-400.0,0.00032876,7]
[359988966,1746466244539,-304.23529294,0.00032876,8]
[359988967,1746466244549,-400.0,0.00032876,8]
[359988968,1746466244559,-400.0,0.00032876,8]
[359988969,1746466244568,-400.0,0.00032876,8]
[359988970,1746466244577,-400.0,0.00032876,8]
[359988971,1746466244586,-400.0,0.00032876,8]
[359988972,1746466244596,-400.0,0.00032876,8]
[359988973,1746466244605,-545.82,0.00032876,8]
[359988974,1746466244615,-400.0,0.00032876,8]
[359988975,1746466244624,-400.0,0.00032876,8]
[359988976,1746466244634,-400.0,0.00032876,8]
[359988977,1746466244643,-400.0,0.00032876,8]
[359988978,1746466244652,-748.45,0.00032876,8]
[359988979,1746466244661,-226.343763,0.00032876,7]
[359988980,1746466244670,-226.343763,0.00032876,7]
[359988981,1746466244680,-1080.9,0.00032876,8]
[359988982,1746466244689,-226.343763,0.00032876,7]
[359988983,1746466244699,-617.8,0.00032876,8]
[359988984,1746466244708,-400.0,0.00032876,8]
[359988985,1746466244717,-400.0,0.00032876,8]
[359988986,1746466244727,-521.08,0.00032876,8]
[359988987,1746466244737,-226.343763,0.00032876,7]
[359988988,1746466244746,-400.0,0.00032876,8]
[359988989,1746466244756,-226.343763,0.00032876,7]
[359988990,1746466244765,-226.343763,0.00032876,7]
[359988991,1746466244775,-400.0,0.00032876,8]
[359988992,1746466244784,-151.0,0.00032876,7]
[359988993,1746466244793,-477.41008178,0.00032876,8]
[359988994,1746466244802,-151.0,0.00032876,7]
[359988995,1746466244813,-151.0,0.00032876,7]
[359988996,1746466244823,-400.0,0.00032876,8]
[359988997,1746466244832,-230.72638221,0.00032876,8]
[359988998,1746466244841,-501.46923121,0.00032876,8]
[359988999,1746466244850,-400.0,0.00032876,8]
[359989000,1746466244859,-323.67214338,0.00032876,8]
[359989001,1746466244869,-400.0,0.00032876,8]
[359989002,1746466244879,-400.0,0.00032876,8]
[359989003,1746466244889,-580.82,0.00032876,8]
[359989004,1746466244898,-1700.23,0.00032876,8]
[359989005,1746466244908,-400.0,0.00032876,8]
[359989006,1746466244917,-400.0,0.00032876,8]
[359989007,1746466244927,-400.0,0.00032876,8]
[359989008,1746466244937,-400.0,0.00032876,8]
[359989009,1746466244947,-400.0,0.00032876,8]
[359989010,1746466244958,-400.0,0.00032876,8]
[359989011,1746466244967,-501.31043889,0.00032876,8]
[359989012,1746466244977,-400.0,0.00032876,8]
[359989013,1746466244986,-400.0,0.00032876,8]
[359989014,1746466244996,-400.0,0.00032876,8]
[359989015,1746466245005,-400.0,0.00032876,8]
[359989016,1746466245015,-400.0,0.00032876,8]
[359989017,1746466245025,-421.77,0.00032876,8]
[359989018,1746466245034,-425.49264212,0.00032876,8]
[359989019,1746466245043,-500.0,0.00032876,8]
[359989020,1746466245053,-400.0,0.00032876,8]
[359989021,1746466245063,-151.0,0.00032876,7]
[359989022,1746466245072,-400.0,0.00032876,8]
[359989023,1746466245082,-1322.26,0.00032876,8]
[359989024,1746466245092,-151.0,0.00032876,7]
[359989025,1746466245101,-151.0,0.00032876,7]
[359989026,1746466245111,-400.0,0.00032876,8]
[359989027,1746466245121,-400.0,0.00032876,8]
[359989028,1746466245131,-400.0,0.00032876,8]
[359989029,1746466245140,-151.0,0.00032876,7]
[359989030,1746466245151,-400.0,0.00032876,8]
[359989031,1746466245160,-151.0,0.00032876,7]
[359989032,1746466245170,-151.0,0.00032876,7]
[359989033,1746466245181,-400.0,0.00032876,8]
[359989034,1746466245190,-151.0,0.00032876,7]
[359989035,1746466245200,-400.0,0.00032876,8]
[359989036,1746466245210,-151.0,0.00032876,7]
[359989037,1746466245220,-2273.92,0.00032876,8]
[359989038,1746466245229,-151.0,0.00032876,7]
[359989039,1746466245239,-400.0,0.00032876,8]
[359989040,1746466245248,-500.0,0.00032876,8]
[359989041,1746466245259,-500.0,0.00032876,8]
[359989042,1746466245273,-500.0,0.00032876,8]
[359989043,1746466245283,-500.0,0.00032876,8]
[359989044,1746466245293,-500.0,0.00032876,8]
[359989045,1746466245302,-403.18437504,0.00032876,8]
[359989046,1746466245312,-400.0,0.00032876,8]
[359989047,1746466245324,-302.913528,0.00032876,7]
[359989048,1746466245334,-302.913528,0.00032876,7]
[359989049,1746466245343,-942.85,0.00032876,8]
[359989050,1746466245353,-302.913528,0.00032876,7]
[359989051,1746466245363,-400.0,0.00032876,8]
[359989052,1746466245372,-400.0,0.00032876,8]
[359989053,1746466245382,-400.0,0.00032876,8]
[359989054,1746466245391,-400.0,0.00032876,8]
[359989055,1746466245402,-400.0,0.00032876,8]
[359989056,1746466245411,-302.913528,0.00032876,7]
[359989057,1746466245421,-1099.01,0.00032876,8]
[359989058,1746466245431,-302.913528,0.00032876,7]
[359989059,1746466245440,-2641.87,0.00032876,8]
[359989060,1746466245450,-302.913528,0.00032876,7]
[359989061,1746466245460,-400.0,0.00032876,8]
[359989062,1746466245470,-400.0,0.00032876,8]
[359989063,1746466245479,-504.9,0.00032876,8]
[359989064,1746466245489,-400.0,0.00032876,8]
[359989065,1746466245498,-400.0,0.00032876,8]
[359989066,1746466245507,-2078.31,0.00032876,8]
[359989067,1746466245517,-400.0,0.00032876,8]
[359989068,1746466245527,-400.0,0.00032876,8]
[359989069,1746466245537,-400.0,0.00032876,8]
[359989070,1746466245546,-1796.69,0.00032876,8]
[359989071,1746466245556,-404.27,0.00032876,8]
[359989072,1746466245565,-400.0,0.00032876,8]
[359989073,1746466245575,-400.0,0.00032876,8]
[359989074,1746466245584,-997.13,0.00032876,8]
[359989075,1746466245594,-400.0,0.00032876,8]
[359989076,1746466245603,-400.0,0.00032876,8]
[359989077,1746466245613,-2875.2,0.00032876,8]
[359989078,1746466245622,-400.0,0.00032876,8]
[359989079,1746466245632,-272.85943335,0.00032876,8]
[359989080,1746466245641,-400.0,0.00032876,8]
[359989081,1746466245651,-933.37,0.00032876,8]
[359989082,1746466245662,-400.0,0.00032876,8]
[359989083,1746466245671,-400.0,0.00032876,8]
[359989084,1746466245681,-400.0,0.00032876,8]
[359989085,1746466245691,-400.0,0.00032876,8]
[359989086,1746466245700,-400.0,0.00032876,8]
[359989087,1746466245710,-500.0,0.00032876,8]
[359989088,1746466245719,-400.0,0.00032876,8]
[359989089,1746466245728,-400.0,0.00032876,8]
[359989090,1746466245738,-400.0,0.00032876,8]
[359989091,1746466245748,-400.0,0.00032876,8]
[359989092,1746466245759,-2166.02,0.00032876,8]
[359989093,1746466245768,-400.0,0.00032876,8]
[359989094,1746466245779,-400.0,0.00032876,8]
[359989095,1746466245788,-495.11,0.00032876,8]
[359989096,1746466245798,-400.0,0.00032876,8]
[359989097,1746466245809,-400.0,0.00032876,8]
[359989099,1746466245819,-478.21,0.00032876,8]
[359989100,1746466245835,-828.45,0.00032876,8]
[359989101,1746466245844,-400.0,0.00032876,8]
[359989102,1746466245854,-2370.89,0.00032876,8]
[359989104,1746466245863,-400.0,0.00032876,8]
[359989106,1746466245873,-833.54,0.00032876,8]
[359989107,1746466245882,-400.0,0.00032876,8]
[359989108,1746466245891,-400.0,0.00032876,8]
[359989109,1746466245901,-500.0,0.00032876,2]
[359989110,1746466245911,-330.1797328,0.00032876,8]
[359989111,1746466245920,-500.0,0.00032876,2]
[359989112,1746466245930,-500.0,0.00032876,2]
[359989113,1746466245940,-500.0,0.00032876,2]
[359989114,1746466245950,-500.0,0.00032876,2]
[359989115,1746466245959,-11132.27,0.00032876,8]
[359989116,1746466245968,-414.2,0.00032876,8]
[359989117,1746466245979,-500.91484984,0.00032876,8]
[359989118,1746466245989,-400.0,0.00032876,8]
[359989119,1746466245999,-1942.95,0.00032876,8]
[359989120,1746466246009,-400.0,0.00032876,8]
[359989122,1746466246019,-400.0,0.00032876,8]
[359989124,1746466246029,-617.39,0.00032876,8]
[359989125,1746466246038,-400.0,0.00032876,8]
[359989126,1746466246048,-400.14815938,0.00032876,8]
[359989127,1746466246058,-400.0,0.00032876,8]
[359989128,1746466246067,-400.0,0.00032876,8]
[359989129,1746466246078,-534.63,0.00032876,8]
[359989130,1746466246087,-400.0,0.00032876,8]
[359989131,1746466246098,-400.0,0.00032876,8]
[359989132,1746466246107,-400.0,0.00032876,8]
[359989133,1746466246265,-400.0,0.00032876,8]
[359989134,1746466246278,-400.0,0.00032876,8]
[359989135,1746466246288,-832.63,0.00032876,8]
[359989136,1746466246298,-400.0,0.00032876,8]
[359989137,1746466246308,-241.99508724,0.00032876,8]
[359989138,1746466246319,-400.0,0.00032876,8]
[359989139,1746466246328,-400.0,0.00032876,8]
[359989140,1746466246338,-400.0,0.00032876,8]
[359989141,1746466246348,-937.4,0.00032876,8]
[359989142,1746466246358,-400.0,0.00032876,8]
[359989143,1746466246367,-400.0,0.00032876,8]
[359989144,1746466246376,-6281.840601,0.00032876,2]
[359989145,1746466246386,-6281.840601,0.00032876,2]
[359989146,1746466246395,-6281.840601,0.00032876,2]
[359989147,1746466246405,-400.0,0.00032876,8]
[359989148,1746466246415,-400.0,0.00032876,8]
[359989149,1746466246425,-1547.41,0.00032876,8]
[359989150,1746466246435,-6281.840601,0.00032876,2]
[359989151,1746466246446,-9074.6,0.00032876,8]
[359989152,1746466246456,-6281.840601,0.00032876,2]
[359989153,1746466246466,-1484.01,0.00032876,8]
[359989154,1746466246475,-400.0,0.00032876,8]
[359989155,1746466246485,-6281.840601,0.00032876,2]
[359989156,1746466246494,-400.0,0.00032876,8]
[359989157,1746466246503,-400.0,0.00032876,8]
[359989158,1746466246512,-2080.35,0.00032876,8]
[359989159,1746466246522,-2232.97,0.00032876,8]
[359989160,1746466246531,-400.0,0.00032876,8]
[359989161,1746466246541,-1691.97,0.00032876,8]
[359989162,1746466246550,-400.0,0.00032876,8]
[359989163,1746466246560,-303.88319864,0.00032876,8]
[359989164,1746466246570,-400.0,0.00032876,8]
[359989165,1746466246579,-400.0,0.00032876,8]
[359989166,1746466246588,-400.0,0.00032876,8]
[359989167,1746466246598,-400.0,0.00032876,8]
[359989168,1746466246607,-291.41736469,0.00032876,8]
[359989169,1746466246617,-400.0,0.00032876,8]
[359989170,1746466246626,-400.0,0.00032876,8]
[359989171,1746466246636,-3521.81,0.00032876,8]
[359989172,1746466246645,-708.96,0.00032876,8]
[359989173,1746466246654,-551.13,0.00032876,8]
[359989174,1746466246664,-400.0,0.00032876,8]
[359989175,1746466246673,-400.0,0.00032876,8]
[359989176,1746466246683,-400.0,0.00032876,8]
[359989177,1746466246692,-453.64349032,0.00032876,8]
[359989178,1746466246701,-400.0,0.00032876,8]
[359989179,1746466246711,-553.1,0.00032876,8]
[359989180,1746466246720,-400.0,0.00032876,8]
[359989181,1746466246730,-400.0,0.00032876,8]
[359989182,1746466246740,-586.27,0.00032876,8]
[359989183,1746466246750,-400.0,0.00032876,8]
[359989184,1746466246760,-400.0,0.00032876,8]
[359989185,1746466246769,-1186.53,0.00032876,8]
[359989186,1746466246779,-535.86,0.00032876,8]
[359989187,1746466246788,-400.0,0.00032876,8]
[359989188,1746466246797,-400.0,0.00032876,8]
[359989189,1746466246807,-400.0,0.00032876,8]
[359989190,1746466246816,-1986.73,0.00032876,8]
[359989191,1746466246825,-1000.0,0.00032876,8]
[359989192,1746466246835,-462.97,0.00032876,8]
[359989193,1746466246844,-402.903244,0.00032876,7]
[359989194,1746466246853,-402.903244,0.00032876,7]
[359989195,1746466246863,-402.903244,0.00032876,7]
[359989196,1746466246873,-406.42,0.00032876,8]
[359989197,1746466246884,-400.0,0.00032876,8]
[359989198,1746466246893,-400.0,0.00032876,8]
[359989199,1746466246903,-400.0,0.00032876,8]
[359989200,1746466246912,-1488.07,0.00032876,8]
[359989201,1746466246921,-402.903244,0.00032876,7]
[359989202,1746466246931,-400.0,0.00032876,8]
[359989203,1746466246941,-402.903244,0.00032876,7]
[359989204,1746466246951,-402.903244,0.00032876,7]
[359989205,1746466246961,-607.06,0.00032876,8]
[359989206,1746466246971,-1507.7,0.00032876,8]
[359989207,1746466246980,-4132.62,0.00032876,8]
[359989208,1746466246990,-1135.42,0.00032876,8]
[359989209,1746466247000,-681.33,0.00032876,8]
[359989210,1746466247009,-400.0,0.00032876,8]
[359989211,1746466247019,-500.0,0.00032876,14]
[359989212,1746466247028,-500.0,0.00032876,15]
[359989213,1746466247038,-1080.08,0.00032876,8]
[359989214,1746466247048,-500.36647621,0.00032876,8]
[359989215,1746466247059,-400.0,0.00032876,8]
[359989216,1746466247068,-402.90109119,0.00032876,8]
[359989217,1746466247079,-400.0,0.00032876,8]
[359989218,1746466247088,-151.0,0.00032876,7]
[359989219,1746466247097,-400.0,0.00032876,8]
[359989220,1746466247107,-151.0,0.00032876,7]
[359989221,1746466247117,-151.0,0.00032876,7]
[359989222,1746466247126,-400.0,0.00032876,8]
[359989223,1746466247135,-400.0,0.00032876,8]
[359989224,1746466247144,-735.3,0.00032876,8]
[359989225,1746466247153,-400.0,0.00032876,8]
[359989226,1746466247163,-400.0,0.00032876,8]
[359989227,1746466247173,-681.17,0.00032876,8]
[359989228,1746466247183,-400.0,0.00032876,8]
[359989229,1746466247193,-4785.9,0.00032876,8]
[359989230,1746466247203,-400.0,0.00032876,8]
[359989231,1746466247212,-400.0,0.00032876,8]
[359989232,1746466247222,-400.0,0.00032876,8]
[359989233,1746466247232,-400.0,0.00032876,8]
[359989234,1746466247242,-400.0,0.00032876,8]
[359989235,1746466247252,-400.0,0.00032876,8]
[359989236,1746466247263,-401.84121099,0.00032876,8]
[359989237,1746466247276,-578.15,0.00032876,8]
[359989238,1746466247286,-400.0,0.00032876,8]
[359989239,1746466247296,-25922.47,0.00032876,8]
[359989240,1746466247306,-400.0,0.00032876,8]
[359989241,1746466247317,-400.0,0.00032876,8]
[359989242,1746466247327,-259.10875312,0.00032876,8]
[359989243,1746466247336,-400.0,0.00032876,8]
[359989244,1746466247348,-3661.81,0.00032876,8]
[359989245,1746466247357,-152.9121276,0.00032876,8]
[359989246,1746466247368,-400.0,0.00032876,8]
[359989247,1746466247377,-400.0,0.00032876,8]
[359989248,1746466247387,-400.0,0.00032876,8]
[359989249,1746466247396,-400.0,0.00032876,8]
[359989250,1746466247405,-2781.29,0.00032876,8]
[359989251,1746466247415,-1064.62,0.00032876,8]
[359989252,1746466247424,-400.0,0.00032876,8]
[359989253,1746466247434,-217.62921253,0.00032876,8]
[359989254,1746466247444,-400.0,0.00032876,8]
[359989255,1746466247453,-151.0,0.00032876,7]
[359989256,1746466247463,-151.0,0.00032876,7]
[359989257,1746466247472,-151.0,0.00032876,7]
[359989258,1746466247482,-400.0,0.00032876,8]
[359989259,1746466247492,-400.0,0.00032876,8]
[359989260,1746466247503,-400.0,0.00032876,8]
[359989261,1746466247513,-210.63447585,0.00032876,8]
[359989262,1746466247523,-151.0,0.00032876,7]
[359989263,1746466247533,-611.37,0.00032876,8]
[359989264,1746466247543,-151.0,0.00032876,7]
[359989265,1746466247554,-151.0,0.00032876,7]
[359989266,1746466247563,-400.0,0.00032876,8]
[359989267,1746466247574,-400.0,0.00032876,8]
[359989268,1746466247583,-400.0,0.00032876,8]